fUSD/lending_fUSD_20240421
["ID","MTS","AMOUNT","RATE_DAILY","PERIOD"]
[323151502,1713721853774,-6843.9,0.00016438,2]
[323151503,1713721853813,-603.33487437,0.00016438,2]
[323151504,1713721853823,-500.0,0.00016438,2]
[323151505,1713721853832,-645.41,0.00016438,2]
[323151506,1713721853842,-2185.86,0.00016438,2]
[323151507,1713721853852,-1315.46,0.00016438,2]
[323151508,1713721853861,-500.0,0.00016438,2]
[323151509,1713721853871,-528.54,0.00016438,2]
[323151510,1713721853880,-413.34776996,0.00016438,2]
[323151511,1713721853889,-500.0,0.00016438,2]
[323151512,1713721853899,-3033.55,0.00016438,2]
[323151513,1713721853908,-500.0,0.00016438,2]
[323151514,1713721853917,-500.0,0.00016438,2]
[323151515,1713721853926,-500.0,0.00016438,2]
[323151516,1713721853936,-500.0,0.00016438,2]
[323151517,1713721853946,-500.0,0.00016438,2]
[323151518,1713721853955,-500.0,0.00016438,2]
[323151519,1713721853965,-3840.07,0.00016438,2]
[323151520,1713721853974,-500.0,0.00016438,2]
[323151521,1713721853984,-500.0,0.00016438,2]
[323151522,1713721853994,-4395.83,0.00016438,2]
[323151523,1713721854004,-500.0,0.00016438,2]
[323151524,1713721854013,-500.0,0.00016438,2]
[323151525,1713721854023,-500.0,0.00016438,2]
[323151526,1713721854032,-500.0,0.00016438,2]
[323151527,1713721854042,-500.0,0.00016438,2]
[323151528,1713721854051,-500.0,0.00016438,2]
[323151529,1713721854060,-2154.47,0.00016438,2]
[323151530,1713721854070,-500.0,0.00016438,2]
[323151531,1713721854079,-1363.49,0.00016438,2]
[323151532,1713721854088,-500.0,0.00016438,2]
[323151533,1713721854098,-1340.78,0.00016438,2]
[323151534,1713721854108,-1190.59,0.00016438,2]
[323151535,1713721854118,-1391.9,0.00016438,2]
[323151536,1713721854127,-500.0,0.00016438,2]
[323151537,1713721854137,-500.0,0.00016438,2]
[323151538,1713721854146,-512.83,0.00016438,2]
[323151539,1713721854155,-500.0,0.00016438,2]
[323151540,1713721854164,-500.0,0.00016438,2]
[323151541,1713721854173,-500.0,0.00016438,2]
[323151542,1713721854182,-9467.53,0.00016438,2]
[323151543,1713721854191,-500.0,0.00016438,2]
[323151544,1713721854200,-511.51,0.00016438,2]
[323151545,1713721854209,-500.0,0.00016438,2]
[323151546,1713721854218,-500.0,0.00016438,2]
[323151547,1713721854227,-500.0,0.00016438,2]
[323151548,1713721854236,-500.0,0.00016438,2]
[323151549,1713721854245,-1631.58,0.00016438,2]
[323151550,1713721854255,-500.0,0.00016438,2]
[323151551,1713721854264,-2162.05,0.00016438,2]
[323151552,1713721854273,-500.0,0.00016438,2]
[323151553,1713721854283,-3898.74,0.00016438,2]
[323151554,1713721854292,-557.3474533,0.00016438,2]
[323151555,1713721854301,-500.0,0.00016438,2]
[323151556,1713721854310,-500.0,0.00016438,2]
[323151557,1713721854320,-500.0,0.00016438,2]
[323151558,1713721854329,-500.0,0.00016438,2]
[323151559,1713721854338,-500.0,0.00016438,2]
[323151560,1713721854347,-500.0,0.00016438,2]
[323151561,1713721854359,-643.33,0.00016438,2]
[323151562,1713721854368,-500.0,0.00016438,2]
[323151563,1713721854377,-751.67,0.00016438,2]
[323151564,1713721854386,-500.0,0.00016438,2]
[323151565,1713721854395,-36368.11,0.00016438,2]
[323151566,1713721854404,-3656.61,0.00016438,2]
[323151567,1713721854413,-500.0,0.00016438,2]
[323151568,1713721854422,-500.0,0.00016438,2]
[323151569,1713721854430,-500.0,0.00016438,2]
[323151570,1713721854440,-824.14,0.00016438,2]
[323151571,1713721854449,-500.0,0.00016438,2]
[323151572,1713721854458,-500.0,0.00016438,2]
[323151573,1713721854467,-500.0,0.00016438,2]
[323151574,1713721854477,-500.0,0.00016438,2]
[323151575,1713721854486,-1010.2,0.00016438,2]
[323151576,1713721854495,-500.0,0.00016438,2]
[323151577,1713721854504,-5095.04,0.00016438,2]
[323151578,1713721854514,-2349.47331371,0.00016438,2]
[323151579,1713721854528,-1814.56851,0.00016438,2]
[323151580,1713721854539,-424.88308538,0.00016438,2]
[323151581,1713721854582,-283.43058592,0.00016438,2]
[323151582,1713721855096,-1259.14050718,0.00016438,2]
[323151583,1713721855108,-2267.91653918,0.00016438,2]
[323151584,1713721855379,-50393.29745863,0.00016438,2]
[323151585,1713721855388,-500.0,0.00016438,2]
[323151586,1713721855397,-500.0,0.00016438,2]
[323151587,1713721855407,-500.0,0.00016438,2]
[323151588,1713721855416,-500.0,0.00016438,2]
[323151589,1713721855425,-500.0,0.00016438,2]
[323151590,1713721855434,-4074.44,0.00016438,2]
[323151591,1713721855443,-1313.32,0.00016438,2]
[323151592,1713721855452,-500.0,0.00016438,2]
[323151593,1713721855462,-500.0,0.00016438,2]
[323151594,1713721855471,-5028.8,0.00016438,2]
[323151595,1713721855480,-500.0,0.00016438,2]
[323151596,1713721855490,-500.0,0.00016438,2]
[323151597,1713721855502,-500.0,0.00016438,2]
[323151598,1713721855511,-500.0,0.00016438,2]
[323151599,1713721855521,-500.0,0.00016438,2]
[323151600,1713721855531,-568.59,0.00016438,2]
[323151601,1713721855540,-3351.52,0.00016438,2]
[323151602,1713721855550,-500.0,0.00016438,2]
[323151603,1713721855559,-3635.7,0.00016438,2]
[323151604,1713721855571,-1135.28,0.00016438,2]
[323151605,1713721855582,-500.0,0.00016438,2]
[323151606,1713721855591,-500.0,0.00016438,2]
[323151607,1713721855600,-500.0,0.00016438,2]
[323151608,1713721855610,-500.0,0.00016438,2]
[323151609,1713721855622,-3600.63,0.00016438,2]
[323151610,1713721855631,-196.76920747,0.00016438,2]
[323151611,1713721855640,-500.0,0.00016438,2]
[323151612,1713721855649,-1887.94,0.00016438,2]
[323151613,1713721855658,-500.0,0.00016438,2]
[323151614,1713721855668,-500.0,0.00016438,2]
[323151615,1713721855678,-500.0,0.00016438,2]
[323151616,1713721855687,-643.38644014,0.00016438,2]
[323151617,1713721855697,-500.0,0.00016438,2]
[323151618,1713721855706,-1249.82,0.00016438,2]
[323151619,1713721855715,-500.0,0.00016438,2]
[323151620,1713721855724,-500.0,0.00016438,2]
[323151621,1713721855734,-500.0,0.00016438,2]
[323151622,1713721855744,-8316.53,0.00016438,2]
[323151623,1713721855758,-500.0,0.00016438,2]
[323151624,1713721855767,-873.75,0.00016438,2]
[323151625,1713721855776,-500.0,0.00016438,2]
[323151626,1713721855786,-500.0,0.00016438,2]
[323151627,1713721855795,-1234.19,0.00016438,2]
[323151628,1713721855804,-500.0,0.00016438,2]
[323151629,1713721855813,-500.0,0.00016438,2]
[323151630,1713721855822,-500.0,0.00016438,2]
[323151631,1713721855832,-500.0,0.00016438,2]
[323151632,1713721855841,-500.0,0.00016438,2]
[323151633,1713721855850,-500.0,0.00016438,2]
[323151634,1713721855859,-500.0,0.00016438,2]
[323151635,1713721855868,-3557.45,0.00016438,2]
[323151636,1713721855877,-500.0,0.00016438,2]
[323151637,1713721855887,-6659.11,0.00016438,2]
[323151638,1713721855896,-694.27,0.00016438,2]
[323151639,1713721855905,-645.91,0.00016438,2]
[323151640,1713721855914,-733.02,0.00016438,2]
[323151641,1713721855924,-500.0,0.00016438,2]
[323151642,1713721855934,-500.0,0.00016438,2]
[323151643,1713721855943,-500.0,0.00016438,2]
[323151644,1713721855953,-21117.5,0.00016438,2]
[323151645,1713721855962,-500.0,0.00016438,2]
[323151646,1713721855972,-1771.74,0.00016438,2]
[323151647,1713721855981,-500.0,0.00016438,2]
[323151648,1713721855991,-4660.11,0.00016438,2]
[323151649,1713721856003,-1755.8,0.00016438,2]
[323151650,1713721856013,-500.0,0.00016438,2]
[323151651,1713721856022,-4897.41,0.00016438,2]
[323151652,1713721856031,-4327.0,0.00016438,2]
[323151653,1713721856041,-500.0,0.00016438,2]
[323151654,1713721856052,-3157.6136762,0.00016438,2]
[323151655,1713721856588,-334.06586448,0.00016438,2]
[323151656,1713721857578,-5694.65045932,0.00016438,2]
[323151657,1713721857587,-501.03,0.00016438,2]
[323151658,1713721857597,-500.0,0.00016438,2]
[323151659,1713721857606,-669.53,0.00016438,2]
[323151660,1713721857616,-500.0,0.00016438,2]
[323151661,1713721857625,-606.8,0.00016438,2]
[323151662,1713721857634,-500.0,0.00016438,2]
[323151663,1713721857644,-459.87035349,0.00016438,2]
[323151664,1713721857654,-2434.18,0.00016438,2]
[323151665,1713721857664,-500.0,0.00016438,2]
[323151666,1713721857673,-500.0,0.00016438,2]
[323151667,1713721857682,-3630.57,0.00016438,2]
[323151668,1713721857692,-697.71628197,0.00016438,2]
[323151669,1713721857704,-1791.70371803,0.00016438,2]
[323151670,1713721857714,-21355.71,0.00016438,2]
[323151671,1713721857723,-150.0,0.00016438,2]
[323151672,1713721857732,-500.0,0.00016438,2]
[323151673,1713721857742,-500.0,0.00016438,2]
[323151674,1713721857752,-5287.4946271,0.00016438,2]
[323151675,1713722110643,451.26,0.0001611,10]
[323151676,1713722142295,200.0,0.00016438,10]
[323151677,1713722258293,571.06,0.00011488,2]
[323151678,1713722708135,-1388.93541559,0.00012437,2]
[323151679,1713722708158,-839.64535407,0.00012438,2]
[323151680,1713722708180,-11401.26194887,0.00012438,2]
[323151681,1713722708204,-159.81,0.00012439,2]
[323151682,1713722740973,-250.0,0.00012546,2]
[323151684,1713722809763,415.55,0.00012346,2]
[323151685,1713722810772,423.05,0.0001611,10]
[323151687,1713722821472,13670.89,0.0001246,2]
[323151688,1713722835202,161.57381335,0.00012598,2]
[323151689,1713722885381,578.2,0.00010408,2]
[323151690,1713722900387,600.0,0.0001246,2]
[323151691,1713722976494,214.2,0.00012239,2]
[323151713,1713723032004,-469.30111907,0.00012671,2]
[323151714,1713723032014,-578.2,0.00012672,2]
[323151715,1713723032023,-150.0,0.00012696,2]
[323151716,1713723032034,-200.12509949,0.00012696,2]
[323151717,1713723032044,-214.17,0.00012696,2]
[323151718,1713723032053,-806.34468144,0.00012697,2]
[323151719,1713723032064,-280.83854349,0.00012697,2]
[323151720,1713723032087,-3184.18321302,0.00012697,2]
[323151721,1713723032099,-299.99,0.00012697,2]
[323151722,1713723032110,-4869.87206032,0.00012697,2]
[323151723,1713723032123,-1960.0334506,0.00012697,2]
[323151724,1713723032132,-3182.03827535,0.00012698,2]
[323151725,1713723032164,-817.96172465,0.00012698,2]
[323151726,1713723032173,-3425.88234612,0.00012795,2]
[323151727,1713723032229,-802.901955,0.00012795,2]
[323151728,1713723032288,-2144.45724868,0.00012795,2]
[323151729,1713723032300,-801.07990242,0.00012795,2]
[323151730,1713723032311,-479.84771151,0.00012795,2]
[323151731,1713723032322,-521.97670531,0.00012795,2]
[323151732,1713723032341,-8144.92980028,0.00012795,2]
[323151733,1713723032372,-410.7321584,0.00012795,2]
[323151734,1713723032384,-718.1788189,0.00012795,2]
[323151738,1713723033804,357.09229288,0.00012571,2]
[323151745,1713723038434,-648.81,0.00012795,2]
[323151746,1713723039081,-528011.28835297,0.00012795,2]
[323151747,1713723039090,-2500.0,0.00012796,2]
[323151748,1713723039100,-40034.4948,0.00012796,2]
[323151749,1713723039110,-96130.66995648,0.00012796,2]
[323151750,1713723039125,-3869.33004352,0.00012796,2]
[323151751,1713723039135,-283.9183,0.00012796,2]
[323151752,1713723039144,-1000.0,0.00012796,2]
[323151753,1713723039154,-161.57381335,0.00012797,2]
[323151754,1713723039163,-3342.186777,0.00012886,2]
[323151755,1713723039173,-444.05092147,0.00012894,2]
[323151756,1713723039182,-355.92855721,0.00012894,2]
[323151757,1713723039191,-993.33350015,0.00012895,2]
[323151758,1713723039201,-684.7924,0.00012897,2]
[323151759,1713723039210,-1000.0,0.00012897,2]
[323151760,1713723039220,-245000.0,0.00012897,2]
[323151761,1713723039229,-172.16538027,0.00012898,2]
[323151762,1713723039238,-164.60268878,0.00012898,2]
[323151763,1713723039248,-206.06084279,0.00012898,2]
[323151764,1713723039257,-1317.85578718,0.00012898,2]
[323151765,1713723039267,-332.45616139,0.00012898,2]
[323151766,1713723039276,-183.97237666,0.00012898,2]
[323151767,1713723039286,-176.35323577,0.00012898,2]
[323151768,1713723039295,-164.60268876,0.00012899,2]
[323151769,1713723039312,-1317.85578718,0.00012899,2]
[323151770,1713723039329,-332.45616139,0.00012899,2]
[323151771,1713723039345,-183.97237666,0.00012899,2]
[323151772,1713723039364,-164.60268876,0.000129,2]
[323151773,1713723039379,-1317.85578718,0.000129,2]
[323151774,1713723039397,-332.45616139,0.000129,2]
[323151775,1713723039414,-183.97237666,0.000129,2]
[323151776,1713723039428,-174.38465913,0.00012995,2]
[323151777,1713723039448,-155.40521512,0.00012996,2]
[323151778,1713723039464,-3825.61534087,0.00012996,2]
[323151779,1713723039480,-499.99,0.00012997,2]
[323151780,1713723039501,-362286.69021827,0.00012998,2]
[323151781,1713723039550,-1509.11685064,0.00012998,2]
[323151782,1713723039570,-6465.96081361,0.00012998,2]
[323151783,1713723039640,-1861426.35089346,0.00012998,2]
[323151784,1713723039655,-150.99,0.00012998,2]
[323151785,1713723039671,-11420.07683941,0.00012999,2]
[323151786,1713723039687,-155.2475375,0.00012999,2]
[323151787,1713723039703,-166687.15296224,0.00013,2]
[323151788,1713723039721,-881657.91076371,0.00013,2]
[323151789,1713723039738,-795.97526695,0.00013,2]
[323151818,1713723040702,-19467.72778609,0.00013,2]
[323151825,1713723040755,-4039.29697125,0.00013,2]
[323151827,1713723040767,-2595.68408,0.00013,2]
[323151829,1713723040778,-788.095,0.00013,2]
[323151831,1713723040790,-840.71707407,0.00013,2]
[323151834,1713723040809,-2723.68358874,0.00013,2]
[323152012,1713723043121,-437.0221954,0.00012996,2]
[323152013,1713723043130,-14453.90761301,0.00013,2]
[323152014,1713723043234,-664.81135914,0.00013,2]
[323152015,1713723043328,-307768.45536084,0.00013,2]
[323152035,1713723046039,-1000.0,0.00012796,2]
[323152036,1713723046055,-2192.65866292,0.00012995,2]
[323152037,1713723046064,-922.71987694,0.00013,2]
[323152038,1713723046814,-21548.5140948,0.00013,2]
[323152039,1713723046830,-964.62244821,0.00013,2]
[323152040,1713723046853,-483.87719183,0.00013,2]
[323152041,1713723046864,-37886.14156968,0.00013,2]
[323152042,1713723046875,-306.21779093,0.00013,2]
[323152043,1713723046915,-1372.13278,0.00013,2]
[323152044,1713723046926,-1378.86660871,0.00013,2]
[323152045,1713723046938,-905.72771757,0.00013,2]
[323152046,1713723055618,300.0,0.000121,4]
[323152047,1713723057727,700.0,0.000122,4]
[323152048,1713723059849,1100.0,0.000123,4]
[323152049,1713723061966,1500.0,0.000124,4]
[323152050,1713723064080,1900.0,0.000125,4]
[323152051,1713723067355,300.0,0.000126,4]
[323152052,1713723067543,3112.78589807,0.00012347,7]
[323152053,1713723189007,250.0,0.00012473,2]
[323152054,1713723288410,1313.66,0.00012329,2]
[323152055,1713723289406,23900.0,0.00012269,2]
[323152056,1713723289475,4459.3547,0.00012516,2]
[323152057,1713723309051,1000.0,0.00012594,2]
[323152058,1713723311187,396.6,0.0001611,10]
[323152059,1713723331889,414.5696,0.0001259,2]
[323152060,1713723346402,200.0,0.00016438,10]
[323152061,1713723347848,643.6999,0.00012594,2]
[323152062,1713723364733,152.69,0.00012328,2]
[323152063,1713723371542,1000.0,0.00012381,2]
[323152064,1713723390151,631.55,0.00010452,2]
[323152065,1713723414265,290.81414345,0.00012057,2]
[323152066,1713723460638,18973.61974827,0.00012,2]
[323152067,1713723475294,4322.3739,0.00012594,2]
[323152068,1713723489805,191.13,0.00012142,2]
[323152069,1713723499832,500.0,0.00012594,2]
[323152070,1713723526926,1026.51,0.00012129,2]
[323152071,1713723553897,1000.0,0.00012594,2]
[323152072,1713723590115,152.57,0.00012148,2]
[323152073,1713723603269,2500.0,0.00012594,2]
[323152074,1713723633460,366.7859,0.00012594,2]
[323152075,1713723645768,70000.0,0.00012335,2]
[323152076,1713723668164,500.0,0.00012594,2]
[323152077,1713723669379,288.51,0.00012183,2]
[323152078,1713723671338,186.85,0.00012183,2]
[323152079,1713723704284,2084.27155015,0.000126,2]
[323152080,1713723731431,2999.50193074,0.00012599,2]
[323152081,1713723741799,1000.0,0.00012594,2]
[323152082,1713723770559,2424.91,0.00012183,2]
[323152083,1713723790703,156.07046385,0.00012513,2]
[323152084,1713723799018,875.44,0.00012155,2]
[323152085,1713723809646,209.9184,0.00012594,2]
[323152086,1713723813086,7130.4241,0.00012594,2]
[323152087,1713723815107,1000.0,0.00012594,2]
[323152088,1713723836596,500.0,0.00012594,2]
[323152089,1713723847427,319.70080444,0.00012594,2]
[323152090,1713723856748,251.28214672,0.00012565,2]
[323152091,1713723856960,151.11010631,0.00012531,2]
[323152092,1713723857591,200.0,0.00011869,2]
[323152093,1713723857687,371.81,0.0001611,10]
[323152094,1713723875963,378.438,0.000126,2]
[323152095,1713723982556,2321.35455575,0.000126,2]
[323152096,1713723990732,1000.0,0.00012594,2]
[323152097,1713723998493,176.48,0.00011902,2]
[323152098,1713723999784,366.7377,0.00012594,2]
[323152099,1713724045790,1000.0,0.00012594,2]
[323152100,1713724109470,157.21,0.00011996,2]
[323152101,1713724111597,2321.35455575,0.000126,2]
[323152102,1713724138740,712.50304557,0.000126,2]
[323152103,1713724180098,2321.35455575,0.000126,2]
[323152104,1713724221504,1000.0,0.00012594,2]
[323152107,1713724232188,-744.0,0.00012601,2]
[323152108,1713724232198,-150.0,0.0001269,2]
[323152109,1713724232207,-1317.37189481,0.00012691,2]
[323152110,1713724232231,-677.45377569,0.00012691,2]
[323152111,1713724232257,-4165.24814187,0.00012691,2]
[323152112,1713724232269,-5241.1881365,0.00012691,2]
[323152113,1713724232280,-2998.19665026,0.00012692,2]
[323152114,1713724232291,-155.0,0.00012692,2]
[323152115,1713724232300,-1060.52885847,0.00012692,2]
[323152116,1713724232309,-2321.35455575,0.00012692,2]
[323152117,1713724232319,-2354.73179602,0.00012693,2]
[323152118,1713724232333,-2274.26238943,0.00012693,2]
[323152119,1713724232344,-1178.45951756,0.00012693,2]
[323152120,1713724232356,-299.46406005,0.00012693,2]
[323152121,1713724232368,-662.86429069,0.00012693,2]
[323152122,1713724232405,-284.49703418,0.00012693,2]
[323152123,1713724232417,-1133.16129937,0.00012693,2]
[323152124,1713724232429,-324.714564,0.00012693,2]
[323152125,1713724232441,-1798.65857261,0.00012693,2]
[323152126,1713724232450,-2305.35596186,0.00012694,2]
[323152127,1713724232462,-9150.68241318,0.00012694,2]
[323152128,1713724232479,-611.71059997,0.00012694,2]
[323152129,1713724232490,-184249.94861319,0.00012694,2]
[323152144,1713724238193,-18818.06040457,0.00012694,2]
[323152145,1713724238431,-934.63394142,0.00012694,2]
[323152146,1713724238442,-872.70044043,0.00012694,2]
[323152147,1713724238453,-4153.96485394,0.00012694,2]
[323152148,1713724238464,-3318.77822788,0.00012694,2]
[323152149,1713724238476,-321694.24954315,0.00012694,2]
[323152150,1713724238485,-245000.0,0.00012695,2]
[323152151,1713724238494,-688.0535,0.00012695,2]
[323152152,1713724238503,-150.99,0.00012696,2]
[323152153,1713724238512,-26065.12,0.000127,2]
[323152154,1713724238521,-150.99,0.000127,2]
[323152156,1713724238531,-499.99,0.000127,2]
[323152157,1713724238540,-299.99,0.00012716,2]
[323152158,1713724238550,-631.55,0.00012716,2]
[323152159,1713724238559,-100000.0,0.00012796,2]
[323152160,1713724238568,-584.13416618,0.000128,2]
[323152161,1713724238578,-584.13416616,0.00012809,2]
[323152162,1713724238587,-584.13416616,0.00012818,2]
[323152163,1713724238596,-584.13416616,0.00012827,2]
[323152165,1713724238606,-584.13416616,0.00012836,2]
[323152167,1713724238615,-584.13416616,0.00012845,2]
[323152168,1713724238624,-584.13416616,0.00012855,2]
[323152169,1713724238634,-584.13416616,0.00012864,2]
[323152170,1713724238644,-584.13416616,0.00012873,2]
[323152171,1713724238653,-584.13416616,0.00012882,2]
[323152172,1713724238662,-584.13416616,0.00012891,2]
[323152173,1713724238671,-40034.4948,0.00012899,2]
[323152174,1713724238680,-10000.0,0.000129,2]
[323152175,1713724238689,-584.13416616,0.000129,2]
[323152176,1713724238698,-1000.0,0.000129,2]
[323152177,1713724238707,-967.87330698,0.000129,2]
[323152178,1713724238716,-272.55078657,0.000129,2]
[323152179,1713724238725,-272.55078656,0.000129,2]
[323152180,1713724238734,-272.55078656,0.000129,2]
[323152181,1713724238743,-272.55078656,0.000129,2]
[323152182,1713724238752,-272.55078656,0.000129,2]
[323152183,1713724238761,-272.55078656,0.000129,2]
[323152184,1713724238771,-272.55078656,0.000129,2]
[323152185,1713724238780,-272.55078656,0.000129,2]
[323152186,1713724238789,-484.85079368,0.000129,2]
[323152187,1713724238798,-1130.478629,0.000129,2]
[323152188,1713724238807,-10710.32133882,0.00012997,2]
[323152189,1713724238816,-1993.92102893,0.00012997,2]
[323152190,1713724238824,-410.32117245,0.00012997,2]
[323152191,1713724238833,-155.2475375,0.00012997,2]
[323152192,1713724238843,-1350.93200741,0.00012997,2]
[323152193,1713724238852,-11420.07683941,0.00012997,2]
[323152194,1713724238861,-2182.49036184,0.00012998,2]
[323152195,1713724238870,-2575.3889,0.00012998,2]
[323152196,1713724238880,-12016.58,0.00012999,2]
[323152197,1713724238889,-192.56707976,0.00012999,2]
[323152198,1713724238899,-9303523.46490084,0.00013,2]
[323152199,1713724238911,-1332581.28984174,0.00013,2]
[323152200,1713724238927,-275.697,0.00013,2]
[323152201,1713724238994,-555.185939,0.00013,2]
[323152202,1713724239005,-3414.14537603,0.00013,2]
[323152220,1713724240216,-406.7734298,0.00013,2]
[323152230,1713724240307,-647.05,0.00013,2]
[323152234,1713724240339,-1246.84230743,0.00013,2]
[323152235,1713724240358,-12053.32388051,0.00013,2]
[323152236,1713724240398,-300.84999994,0.00013,2]
[323152237,1713724240446,-5150833.56865836,0.00013,2]
[323152243,1713724243161,-537.16417105,0.00013,2]
[323152245,1713724243173,-1282.0,0.00013,2]
[323152256,1713724243273,-1551.37684282,0.00013,2]
[323152261,1713724243400,-9643.570866,0.00013,2]
[323152262,1713724243413,-467.04565678,0.00013,2]
[323152263,1713724243424,-1034.06392184,0.00013,2]
[323152264,1713724243524,-40938.91504118,0.00013,2]
[323152272,1713724246154,-7062.93476886,0.00012999,2]
[323152273,1713724246551,-4338.32718001,0.00012999,2]
[323152274,1713724246560,-98403.80081998,0.00013,2]
[323152275,1713724246572,-1232.59825842,0.00013,2]
[323152278,1713724246627,-897.58999998,0.00013,2]
[323152280,1713724246640,-506603.93087477,0.00013,2]
[323152281,1713724246659,-601.93717688,0.00013,2]
[323152283,1713724246670,-360.44824083,0.00013,2]
[323152284,1713724246681,-502.13752266,0.00013,2]
[323152285,1713724246693,-1329.49888041,0.00013,2]
[323152289,1713724246757,-6546.012,0.00013,2]
[323152290,1713724246768,-32282.65373541,0.00013,2]
[323152291,1713724246828,-114998.41294751,0.00013,2]
[323152292,1713724246840,-85722.27047214,0.00013,2]
[323152293,1713724246851,-3720.00002,0.00013,2]
[323152294,1713724246863,-983.86902031,0.00013,2]
[323152295,1713724246894,-297.80408965,0.00013,2]
[323152296,1713724246905,-7104.6828428,0.00013,2]
[323152297,1713724264211,4091.6124,0.00012501,2]
[323152298,1713724274938,22465.9491,0.00012594,2]
[323152299,1713724276587,1000.0,0.00012594,2]
[323152300,1713724281660,908.57,0.00011402,2]
[323152301,1713724285528,902.0922629,0.00012997,7]
[323152302,1713724293615,299.288,0.00022,120]
[323152303,1713724299454,100000.0,0.00012594,2]
[323152304,1713724302612,601.39484193,0.00012997,8]
[323152305,1713724324610,501.16236828,0.00012997,8]
[323152306,1713724328054,962.7225,0.00012594,2]
[323152307,1713724344618,261.10559387,0.00012997,8]
[323152308,1713724366636,261.10559387,0.00012997,8]
[323152309,1713724384678,261.10559387,0.00012997,8]
[323152310,1713724385186,840.0,0.00012468,2]
[323152311,1713724400627,261.10559387,0.00012997,8]
[323152312,1713724422851,261.10559387,0.00012896,8]
[323152313,1713724438855,261.10559387,0.00012896,8]
[323152314,1713724456858,261.10559387,0.00012896,8]
[323152315,1713724476881,261.10559387,0.00012896,8]
[323152316,1713724478360,348.57,0.0001611,10]
[323152317,1713724496862,261.10559387,0.00012896,8]
[323152318,1713724497224,2179.20192415,0.00012599,2]
[323152319,1713724501199,299.28,0.00012085,2]
[323152320,1713724512860,261.10559387,0.00012896,8]
[323152321,1713724533128,395.91827094,0.00012896,8]
[323152322,1713724537266,1372.877436,0.00012537,2]
[323152323,1713724574526,200.0,0.00016438,10]
[323152324,1713724597303,1781.83925523,0.00012599,2]
[323152325,1713724603015,295.04,0.00012178,2]
[323152326,1713724644512,161.24,0.00012087,2]
[323152327,1713724644934,250.0,0.00012087,2]
[323152328,1713724750611,593.26511671,0.00012599,2]
[323152329,1713724777146,23900.0,0.00012029,2]
[323152330,1713724834946,1901.86,0.00012031,2]
[323152331,1713724856609,523.86545643,0.00012599,2]
[323152332,1713724868529,1101.33,0.00010137,2]
[323152333,1713724868732,1101.33,0.000124,2]
[323152334,1713724894572,328.0,0.00012105,2]
[323152335,1713725048123,308.6415,0.00012553,2]
[323152336,1713725117063,326.78,0.0001611,10]
[323152337,1713725136985,216.09,0.00012139,2]
[323152338,1713725177709,169.55226304,0.00012544,2]
[323152339,1713725257494,532.89332388,0.00012599,2]
[323152340,1713725274400,598.6796,0.00012549,2]
[323152341,1713725288893,11586.57,0.0001215,2]
[323152342,1713725318564,1835.35,0.0001215,2]
[323152343,1713725393679,991.19,0.00010306,2]
[323152344,1713725393921,991.19,0.0001257,2]
[323152361,1713725432315,-347.11657611,0.000126,2]
[323152362,1713725432325,-2829.7481097,0.00012637,2]
[323152363,1713725432373,-250.40422872,0.00012637,2]
[323152364,1713725432382,-27.70432928,0.00012638,2]
[323152365,1713725432394,-606.90853724,0.00012638,2]
[323152366,1713725432405,-311.8115,0.00012638,2]